[Event "Torneo Nuevo Centro. Jornada 10"]
[Site "Chess.com"]
[Date "2020.08.21"]
[Round "4"]
[White "Martínez Escandell, Alfonso"]
[Black "Bendayán Claros, Aaron"]
[Result "1-0"]
[WhiteElo "1862"]
[BlackElo "1981"]
[TimeControl "180+2"]
[EndTime "11:12:51 PDT"]
[Termination "Victoria de Alfonso10 por tiempo"]

1. e4 {[%clk 0:03:00.2]} 1... c6 {[%clk 0:03:00.1]} 2. d4 {[%clk 0:02:58.1]}
2... d5 {[%clk 0:03:02]} 3. Nc3 {[%clk 0:02:58.4]} 3... dxe4 {[%clk 0:03:03.9]}
4. Nxe4 {[%clk 0:02:57.3]} 4... Nf6 {[%clk 0:03:04.1]} 5. Nxf6+ {[%clk 0:02:54]}
5... exf6 {[%clk 0:03:06]} 6. Nf3 {[%clk 0:02:51.2]} 6... Bd6 {[%clk 0:03:07.2]}
7. Bd3 {[%clk 0:02:46.1]} 7... O-O {[%clk 0:03:07.8]} 8. O-O {[%clk 0:02:44.7]}
8... Re8 {[%clk 0:03:07.3]} 9. c3 {[%clk 0:02:38.4]} 9... Bg4 {[%clk 0:03:08]}
10. h3 {[%clk 0:02:34.4]} 10... Be6 {[%clk 0:03:08.6]} 11. Re1 {[%clk
0:02:32.7]} 11... Nd7 {[%clk 0:03:09.3]} 12. Be3 {[%clk 0:02:26.5]} 12... Nf8
{[%clk 0:03:10.2]} 13. Nd2 {[%clk 0:02:24.1]} 13... Ng6 {[%clk 0:03:10]} 14. Ne4
{[%clk 0:02:15.7]} 14... Bc7 {[%clk 0:03:07.9]} 15. Qh5 {[%clk 0:02:10.1]} 15...
b6 {[%clk 0:03:06.8]} 16. Ng3 {[%clk 0:02:05.1]} 16... Bxg3 {[%clk 0:02:44.2]}
17. fxg3 {[%clk 0:02:04.7]} 17... Qd7 {[%clk 0:02:40.9]} 18. a4 {[%clk
0:02:00.8]} 18... Re7 {[%clk 0:02:40.5]} 19. a5 {[%clk 0:01:55.9]} 19... Rae8
{[%clk 0:02:40.5]} 20. Bf2 {[%clk 0:01:52.5]} 20... b5 {[%clk 0:02:36.8]} 21. b4
{[%clk 0:01:45.5]} 21... a6 {[%clk 0:02:36.1]} 22. Re3 {[%clk 0:01:43.2]} 22...
Bd5 {[%clk 0:02:36.9]} 23. Rxe7 {[%clk 0:01:38.7]} 23... Rxe7 {[%clk 0:02:37]}
24. Bf5 {[%clk 0:01:34.4]} 24... Qe8 {[%clk 0:02:36.1]} 25. Rc1 {[%clk
0:01:26.3]} 25... Nf8 {[%clk 0:02:36.2]} 26. Bb1 {[%clk 0:01:22.6]} 26... g6
{[%clk 0:02:36.6]} 27. Qh6 {[%clk 0:01:19.8]} 27... Re2 {[%clk 0:02:34.3]} 28.
Bd3 {[%clk 0:01:16.5]} 28... Re6 {[%clk 0:02:20.2]} 29. Qf4 {[%clk 0:01:13.6]}
29... Nd7 {[%clk 0:01:57]} 30. g4 {[%clk 0:01:09.4]} 30... Be4 {[%clk
0:01:48.4]} 31. Bxe4 {[%clk 0:01:06.4]} 31... Rxe4 {[%clk 0:01:50.3]} 32. Qc7
{[%clk 0:01:05.8]} 32... Qe6 {[%clk 0:01:48.5]} 33. Qc8+ {[%clk 0:01:02]} 33...
Kg7 {[%clk 0:01:48.8]} 34. Qxa6 {[%clk 0:00:59]} 34... Re2 {[%clk 0:01:47.2]}
35. Qb7 {[%clk 0:00:54.7]} 35... f5 {[%clk 0:01:25.9]} 36. gxf5 {[%clk
0:00:51.7]} 36... Qxf5 {[%clk 0:01:26.5]} 37. Rf1 {[%clk 0:00:49.5]} 37... Qe6
{[%clk 0:00:32.2]} 38. a6 {[%clk 0:00:47.5]} 38... Qe8 {[%clk 0:00:18.2]} 39.
Qxc6 {[%clk 0:00:40]} 39... Nf6 {[%clk 0:00:12]} 40. d5 {[%clk 0:00:34.2]} 40...
Ne4 {[%clk 0:00:05]} 41. Bd4+ {[%clk 0:00:27.3]} 41... Kh6 {[%clk 0:00:04.9]}
42. Qxe8 {[%clk 0:00:27.7]} 1

[Event "Torneo Nuevo Centro. Jornada 10"]
[Site "Chess.com"]
[Date "2020.08.21"]
[Round "4"]
[White "Salvador Buiza, Victor"]
[Black "Garcia, Jhoel"]
[Result "0-1"]
[WhiteElo "1882"]
[BlackElo "2408"]
[TimeControl "180+2"]
[EndTime "11:12:55 PDT"]
[Termination "Victoria de shoels por jaque mate"]

1. e4 {[%clk 0:03:01.9]} 1... c5 {[%clk 0:02:58.3]} 2. Nf3 {[%clk 0:03:01.8]}
2... e6 {[%clk 0:02:59.1]} 3. c3 {[%clk 0:03:00.9]} 3... d5 {[%clk 0:02:58.4]}
4. exd5 {[%clk 0:03:01.9]} 4... exd5 {[%clk 0:02:59.9]} 5. d4 {[%clk 0:03:03.1]}
5... Nc6 {[%clk 0:02:57]} 6. Bb5 {[%clk 0:03:02.9]} 6... a6 {[%clk 0:02:56.6]}
7. Bxc6+ {[%clk 0:03:00]} 7... bxc6 {[%clk 0:02:57.8]} 8. O-O {[%clk 0:02:51.5]}
8... Be7 {[%clk 0:02:53.7]} 9. Bf4 {[%clk 0:02:49.9]} 9... Nf6 {[%clk
0:02:52.2]} 10. Ne5 {[%clk 0:02:50.2]} 10... Bd7 {[%clk 0:02:40.4]} 11. Be3
{[%clk 0:02:47.3]} 11... cxd4 {[%clk 0:02:40.9]} 12. Bxd4 {[%clk 0:02:35.6]}
12... O-O {[%clk 0:02:39.9]} 13. Re1 {[%clk 0:02:27.3]} 13... Be8 {[%clk
0:02:19.7]} 14. Nd2 {[%clk 0:02:11.2]} 14... c5 {[%clk 0:02:19.8]} 15. Be3
{[%clk 0:02:12.1]} 15... d4 {[%clk 0:02:11.4]} 16. cxd4 {[%clk 0:02:12.9]} 16...
cxd4 {[%clk 0:02:12.7]} 17. Bf4 {[%clk 0:02:07.4]} 17... Nd5 {[%clk 0:02:13.8]}
18. Bg3 {[%clk 0:02:03.7]} 18... f5 {[%clk 0:01:58.6]} 19. f4 {[%clk 0:01:55.2]}
19... Kh8 {[%clk 0:01:51.4]} 20. Ndc4 {[%clk 0:01:17]} 20... Bc5 {[%clk
0:01:51]} 21. Bf2 {[%clk 0:01:11]} 21... Nxf4 {[%clk 0:01:50.3]} 22. Nf3 {[%clk
0:00:55.4]} 22... Qd5 {[%clk 0:01:02.9]} 23. Rc1 {[%clk 0:00:20.5]} 23... d3
{[%clk 0:00:43.2]} 24. Ne3 {[%clk 0:00:18.2]} 24... Qd6 {[%clk 0:00:29.7]} 25.
Nc4 {[%clk 0:00:15.7]} 25... Bxf2+ {[%clk 0:00:27.6]} 26. Kxf2 {[%clk
0:00:16.7]} 26... Qd4+ {[%clk 0:00:28]} 27. Kf1 {[%clk 0:00:13.4]} 27... Bb5
{[%clk 0:00:24.5]} 28. b3 {[%clk 0:00:13.1]} 28... Ne2 {[%clk 0:00:22.9]} 29.
Rb1 {[%clk 0:00:08]} 29... Nc3 {[%clk 0:00:22.2]} 30. Qd2 {[%clk 0:00:08.2]}
30... Ne4 {[%clk 0:00:22.2]} 31. Qe3 {[%clk 0:00:06.7]} 31... Qxe3 {[%clk
0:00:21.1]} 32. Rxe3 {[%clk 0:00:07.6]} 32... Rab8 {[%clk 0:00:18.4]} 33. Ncd2
{[%clk 0:00:05.7]} 33... Bc6 {[%clk 0:00:17.9]} 34. Rxd3 {[%clk 0:00:05.4]}
34... Bb5 {[%clk 0:00:18.8]} 35. Nc4 {[%clk 0:00:05.7]} 35... Bxc4 {[%clk
0:00:19.8]} 36. bxc4 {[%clk 0:00:06.2]} 36... Rxb1+ {[%clk 0:00:21]} 37. Ke2
{[%clk 0:00:05.2]} 37... Rb2+ {[%clk 0:00:22.2]} 38. Kf1 {[%clk 0:00:05.4]}
38... Rfb8 {[%clk 0:00:21.9]} 39. Ne5 {[%clk 0:00:05.5]} 39... g6 {[%clk
0:00:22.2]} 40. Nc6 {[%clk 0:00:04.6]} 40... Rc8 {[%clk 0:00:21.7]} 41. Ne7
{[%clk 0:00:05]} 41... Rxc4 {[%clk 0:00:21.6]} 42. Rd8+ {[%clk 0:00:05.9]} 42...
Kg7 {[%clk 0:00:22.2]} 43. h3 {[%clk 0:00:07.2]} 43... Rc1+ {[%clk 0:00:22.5]}
44. Rd1 {[%clk 0:00:07.7]} 44... Rxd1# {[%clk 0:00:23.2]} 0

[Event "Torneo Nuevo Centro. Jornada 10"]
[Site "Chess.com"]
[Date "2020.08.21"]
[Round "4"]
[White "Pardo Ruiz, Carlos"]
[Black "Ortiz Benavent, Alba"]
[Result "1-0"]
[WhiteElo "1688"]
[BlackElo "1208"]
[TimeControl "180+2"]
[EndTime "11:13:02 PDT"]
[Termination "Victoria de Carlitoscarlsen por abandono"]

1. e4 {[%clk 0:03:01.9]} 1... e5 {[%clk 0:02:56.5]} 2. Nf3 {[%clk 0:02:59.2]}
2... Nc6 {[%clk 0:02:56.4]} 3. Bc4 {[%clk 0:02:58.3]} 3... Bc5 {[%clk
0:02:52.9]} 4. c3 {[%clk 0:02:54.2]} 4... Nf6 {[%clk 0:02:50.5]} 5. d4 {[%clk
0:02:52.5]} 5... exd4 {[%clk 0:02:50.1]} 6. cxd4 {[%clk 0:02:54.4]} 6... Bb4+
{[%clk 0:02:40.3]} 7. Bd2 {[%clk 0:02:54.1]} 7... Bxd2+ {[%clk 0:02:39.5]} 8.
Nbxd2 {[%clk 0:02:56]} 8... O-O {[%clk 0:02:37.2]} 9. O-O {[%clk 0:02:55.7]}
9... d6 {[%clk 0:02:37.1]} 10. h3 {[%clk 0:02:55.6]} 10... Re8 {[%clk 0:02:35]}
11. Re1 {[%clk 0:02:55.7]} 11... Re7 {[%clk 0:02:26.3]} 12. e5 {[%clk
0:02:52.6]} 12... dxe5 {[%clk 0:02:23.4]} 13. dxe5 {[%clk 0:02:54.5]} 13... Nd5
{[%clk 0:02:06.5]} 14. Nb3 {[%clk 0:02:37.6]} 14... Nb6 {[%clk 0:02:04.7]} 15.
Qxd8+ {[%clk 0:02:35]} 15... Nxd8 {[%clk 0:02:04.4]} 16. Bf1 {[%clk 0:02:12.2]}
16... Ne6 {[%clk 0:02:01.2]} 17. Rad1 {[%clk 0:02:11.7]} 17... Rd7 {[%clk
0:01:49.1]} 18. Rxd7 {[%clk 0:01:43.7]} 18... Bxd7 {[%clk 0:01:43.1]} 19. Rd1
{[%clk 0:01:44.5]} 19... Bc6 {[%clk 0:01:41.5]} 20. Nh2 {[%clk 0:01:41]} 20...
Rd8 {[%clk 0:01:41.5]} 21. Rxd8+ {[%clk 0:01:39.5]} 21... Nxd8 {[%clk
0:01:41.8]} 22. Nd4 {[%clk 0:01:40.4]} 22... Bd5 {[%clk 0:01:38.7]} 23. b3
{[%clk 0:01:39]} 23... Ne6 {[%clk 0:01:37.6]} 24. Nxe6 {[%clk 0:01:38.9]} 24...
Bxe6 {[%clk 0:01:37.9]} 25. f4 {[%clk 0:01:39.4]} 25... Kf8 {[%clk 0:01:37.1]}
26. g4 {[%clk 0:01:39.9]} 26... h6 {[%clk 0:01:37.2]} 27. f5 {[%clk 0:01:40.2]}
27... Bd7 {[%clk 0:01:33.1]} 28. Nf3 {[%clk 0:01:40.5]} 28... Bc6 {[%clk
0:01:33.5]} 29. Nd4 {[%clk 0:01:40.8]} 29... Bd5 {[%clk 0:01:29]} 30. Kf2 {[%clk
0:01:35.6]} 30... Ke7 {[%clk 0:01:29.7]} 31. Ke3 {[%clk 0:01:34.3]} 31... Nd7
{[%clk 0:01:27.7]} 32. Kf4 {[%clk 0:01:32.8]} 32... Nb6 {[%clk 0:01:18.1]} 33.
Nb5 {[%clk 0:01:29.9]} 33... Kd7 {[%clk 0:01:08.7]} 34. Nxa7 {[%clk 0:01:29.2]}
34... Bc6 {[%clk 0:01:06.4]} 35. Nxc6 {[%clk 0:01:27.9]} 35... Kxc6 {[%clk
0:01:06.8]} 36. a3 {[%clk 0:01:24.1]} 36... Nd5+ {[%clk 0:01:06.8]} 37. Kg3
{[%clk 0:01:22.5]} 37... Ne3 {[%clk 0:01:05.6]} 38. Bd3 {[%clk 0:01:18.3]} 38...
Kd5 {[%clk 0:00:57.6]} 39. Kf4 {[%clk 0:01:09]} 39... Ng2+ {[%clk 0:00:55.2]}
40. Kf3 {[%clk 0:00:59.9]} 40... Ne1+ {[%clk 0:00:55.2]} 41. Ke2 {[%clk
0:00:59]} 41... Nxd3 {[%clk 0:00:56.2]} 42. Kxd3 {[%clk 0:01:00.9]} 42... Kxe5
{[%clk 0:00:57.2]} 43. Ke3 {[%clk 0:01:01]} 43... f6 {[%clk 0:00:56.4]} 44. a4
{[%clk 0:00:58.5]} 44... b6 {[%clk 0:00:57.2]} 45. b4 {[%clk 0:00:57.4]} 45...
c6 {[%clk 0:00:57.9]} 46. a5 {[%clk 0:00:53.9]} 46... Kd6 {[%clk 0:00:37.2]} 47.
axb6 {[%clk 0:00:53.3]} 47... Kd7 {[%clk 0:00:33.9]} 48. Kd4 {[%clk 0:00:53.9]}
48... Kc8 {[%clk 0:00:32.4]} 49. Kc5 {[%clk 0:00:54.3]} 49... Kb7 {[%clk
0:00:33]} 50. b5 {[%clk 0:00:54.4]} 50... cxb5 {[%clk 0:00:33.3]} 51. Kxb5
{[%clk 0:00:56.3]} 51... Kc8 {[%clk 0:00:31.5]} 52. Kc6 {[%clk 0:00:51.1]} 52...
Kb8 {[%clk 0:00:31.8]} 53. b7 {[%clk 0:00:51.4]} 53... Ka7 {[%clk 0:00:25.3]}
54. Kc7 {[%clk 0:00:51.7]} 54... g6 {[%clk 0:00:25.7]} 55. b8=Q+ {[%clk
0:00:51.2]} 1

[Event "Torneo Nuevo Centro. Jornada 10"]
[Site "Chess.com"]
[Date "2020.08.21"]
[Round "4"]
[White "Nadal Fajardo, Ricard"]
[Black "Fenollar Jorda, Manolo"]
[Result "0-1"]
[WhiteElo "2223"]
[BlackElo "2481"]
[TimeControl "180+2"]
[EndTime "11:13:04 PDT"]
[Termination "Victoria de Cucudrulu por abandono"]

1. Nf3 {[%clk 0:03:00.6]} 1... d5 {[%clk 0:03:00.4]} 2. b3 {[%clk 0:03:01.5]}
2... Nf6 {[%clk 0:03:00.1]} 3. Bb2 {[%clk 0:03:02.9]} 3... e6 {[%clk 0:03:01.4]}
4. e3 {[%clk 0:03:04.2]} 4... Be7 {[%clk 0:03:01.8]} 5. Be2 {[%clk 0:03:04.6]}
5... O-O {[%clk 0:03:01.4]} 6. O-O {[%clk 0:03:06.2]} 6... c5 {[%clk 0:03:01.6]}
7. c4 {[%clk 0:03:07]} 7... Nc6 {[%clk 0:03:00.5]} 8. cxd5 {[%clk 0:03:08.2]}
8... exd5 {[%clk 0:03:01.2]} 9. d4 {[%clk 0:03:09.8]} 9... b6 {[%clk 0:02:57.6]}
10. Nc3 {[%clk 0:03:07.8]} 10... Bf5 {[%clk 0:02:42.3]} 11. Rc1 {[%clk
0:02:55.3]} 11... Rc8 {[%clk 0:02:42.4]} 12. Ba6 {[%clk 0:02:49]} 12... Rb8
{[%clk 0:02:39.3]} 13. h3 {[%clk 0:02:43.6]} 13... Qd6 {[%clk 0:02:32.9]} 14.
Bd3 {[%clk 0:02:30.6]} 14... Ne4 {[%clk 0:02:15.8]} 15. dxc5 {[%clk 0:02:17.2]}
15... bxc5 {[%clk 0:02:16.3]} 16. Qe2 {[%clk 0:02:01.2]} 16... Rfd8 {[%clk
0:02:08]} 17. Rfd1 {[%clk 0:01:55.9]} 17... Qg6 {[%clk 0:02:07.4]} 18. Kh1
{[%clk 0:01:36.5]} 18... Nxf2+ {[%clk 0:01:58.8]} 19. Qxf2 {[%clk 0:01:30.8]}
19... Bxd3 {[%clk 0:02:00]} 20. Na4 {[%clk 0:00:58.3]} 20... c4 {[%clk
0:01:59.2]} 21. Ba1 {[%clk 0:00:35.5]} 21... Rbc8 {[%clk 0:01:52.2]} 22. Rd2
{[%clk 0:00:11.9]} 22... Bb4 {[%clk 0:01:49.6]} 23. Rdd1 {[%clk 0:00:11.2]}
23... Ba3 {[%clk 0:01:48.4]} 24. Rc3 {[%clk 0:00:05.5]} 24... Be7 {[%clk
0:01:28.1]} 25. Rcc1 {[%clk 0:00:04.2]} 25... Nb4 {[%clk 0:01:23.1]} 26. Ne5
{[%clk 0:00:03.5]} 26... Qh5 {[%clk 0:00:59.1]} 27. Qg3 {[%clk 0:00:04.2]} 27...
Bg6 {[%clk 0:00:54.1]} 28. Bd4 {[%clk 0:00:03.6]} 28... Bf6 {[%clk 0:00:36.8]}
29. Nf3 {[%clk 0:00:03.7]} 29... Bxd4 {[%clk 0:00:31.4]} 30. Nxd4 {[%clk
0:00:05.1]} 30... Nd3 {[%clk 0:00:33]} 31. Rc3 {[%clk 0:00:05.4]} 31... Qxd1+
{[%clk 0:00:30.9]} 32. Kh2 {[%clk 0:00:05.6]} 32... Qe1 {[%clk 0:00:30.4]} 33.
Qg4 {[%clk 0:00:04.1]} 33... h5 {[%clk 0:00:20.3]} 34. Qg5 {[%clk 0:00:04.9]}
34... Nf2 {[%clk 0:00:16.3]} 35. Qf4 {[%clk 0:00:04]} 35... Qh1+ {[%clk
0:00:12.3]} 36. Kg3 {[%clk 0:00:05.6]} 36... Ne4+ {[%clk 0:00:14]} 37. Kh4
{[%clk 0:00:07.5]} 37... Nxc3 {[%clk 0:00:15.3]} 38. Nxc3 {[%clk 0:00:08.3]}
38... Qe1+ {[%clk 0:00:17]} 39. Kg5 {[%clk 0:00:08.5]} 39... Qxc3 {[%clk
0:00:18.9]} 40. Kh4 {[%clk 0:00:08.5]} 40... Qd3 {[%clk 0:00:19.9]} 41. Kg3
{[%clk 0:00:09.5]} 41... Qe4 {[%clk 0:00:21.1]} 42. Qf2 {[%clk 0:00:10.3]} 42...
Re8 {[%clk 0:00:21.1]} 43. Nc2 {[%clk 0:00:09.4]} 43... cxb3 {[%clk 0:00:22.6]}
44. axb3 {[%clk 0:00:11.3]} 44... Rxc2 {[%clk 0:00:23.4]} 45. Qe1 {[%clk
0:00:11.9]} 45... Qxe3+ {[%clk 0:00:24.7]} 46. Qxe3 {[%clk 0:00:13.2]} 46...
Rxe3+ {[%clk 0:00:26.6]} 0

[Event "Torneo Nuevo Centro. Jornada 10"]
[Site "Chess.com"]
[Date "2020.08.21"]
[Round "4"]
[White "Serrano Requena, Guillem"]
[Black "Bercaru, Vlad Ionut"]
[Result "0-1"]
[WhiteElo "1268"]
[BlackElo "1758"]
[TimeControl "180+2"]
[EndTime "11:13:07 PDT"]
[Termination "Victoria de Rata29 por abandono"]

1. d4 {[%clk 0:02:57.7]} 1... Nf6 {[%clk 0:02:59.8]} 2. Bg5 {[%clk 0:02:53.6]}
2... g6 {[%clk 0:02:48.8]} 3. Bxf6 {[%clk 0:02:54.2]} 3... exf6 {[%clk
0:02:50.7]} 4. c4 {[%clk 0:02:55.2]} 4... Bg7 {[%clk 0:02:51.6]} 5. g3 {[%clk
0:02:56.3]} 5... O-O {[%clk 0:02:52.2]} 6. Bg2 {[%clk 0:02:57.1]} 6... f5 {[%clk
0:02:52.1]} 7. Nc3 {[%clk 0:02:57.3]} 7... d6 {[%clk 0:02:53.3]} 8. e3 {[%clk
0:02:56]} 8... c6 {[%clk 0:02:53]} 9. Nge2 {[%clk 0:02:56.7]} 9... Nd7 {[%clk
0:02:52]} 10. O-O {[%clk 0:02:56.9]} 10... Nf6 {[%clk 0:02:52.8]} 11. b4 {[%clk
0:02:52.7]} 11... Be6 {[%clk 0:02:49.8]} 12. Qb3 {[%clk 0:02:44.5]} 12... Rc8
{[%clk 0:02:40.1]} 13. Nf4 {[%clk 0:02:44.3]} 13... Kh8 {[%clk 0:02:14.7]} 14.
Rfc1 {[%clk 0:02:30]} 14... Re8 {[%clk 0:01:50]} 15. a4 {[%clk 0:02:17.2]} 15...
d5 {[%clk 0:01:41.4]} 16. c5 {[%clk 0:02:14]} 16... Ne4 {[%clk 0:01:33.6]} 17.
b5 {[%clk 0:02:07.9]} 17... Rb8 {[%clk 0:01:22.8]} 18. a5 {[%clk 0:01:39.5]}
18... Bd7 {[%clk 0:01:12.2]} 19. Qa4 {[%clk 0:01:02.5]} 19... cxb5 {[%clk
0:01:01.9]} 20. Nxb5 {[%clk 0:00:59.6]} 20... a6 {[%clk 0:01:00.9]} 21. Qb3
{[%clk 0:00:46.4]} 21... Bxb5 {[%clk 0:00:50.4]} 22. Qxd5 {[%clk 0:00:44.4]}
22... Qxd5 {[%clk 0:00:47.4]} 23. Nxd5 {[%clk 0:00:46.3]} 23... Bc6 {[%clk
0:00:43.8]} 24. Nb4 {[%clk 0:00:45.6]} 24... Rbd8 {[%clk 0:00:35.2]} 25. Nxc6
{[%clk 0:00:43.8]} 25... bxc6 {[%clk 0:00:35.1]} 26. Rab1 {[%clk 0:00:44.3]}
26... Rb8 {[%clk 0:00:34.1]} 27. Rb6 {[%clk 0:00:43.8]} 27... Rec8 {[%clk
0:00:24.8]} 28. Rxa6 {[%clk 0:00:32.7]} 28... Ra8 {[%clk 0:00:23.7]} 29. Rxa8
{[%clk 0:00:32.4]} 29... Rxa8 {[%clk 0:00:25.6]} 30. Ra1 {[%clk 0:00:33.1]}
30... Bf8 {[%clk 0:00:19.6]} 31. g4 {[%clk 0:00:19.2]} 31... Bg7 {[%clk
0:00:18.7]} 32. gxf5 {[%clk 0:00:19.3]} 32... gxf5 {[%clk 0:00:18.5]} 33. f3
{[%clk 0:00:19.9]} 33... Nxc5 {[%clk 0:00:15.6]} 34. Rc1 {[%clk 0:00:17.7]}
34... Nd3 {[%clk 0:00:14.5]} 35. Rxc6 {[%clk 0:00:17.2]} 35... Bf8 {[%clk
0:00:11.7]} 36. Rc3 {[%clk 0:00:14.3]} 36... Nb4 {[%clk 0:00:10.1]} 37. f4
{[%clk 0:00:13.9]} 37... Rxa5 {[%clk 0:00:10.5]} 38. Rb3 {[%clk 0:00:14.7]}
38... Kg7 {[%clk 0:00:10.2]} 39. Rxb4 {[%clk 0:00:15.3]} 39... Bxb4 {[%clk
0:00:11]} 40. Kf2 {[%clk 0:00:15.8]} 40... Ra1 {[%clk 0:00:12.5]} 41. Kf3 {[%clk
0:00:16.4]} 41... Rd1 {[%clk 0:00:13.2]} 42. Kg3 {[%clk 0:00:17.1]} 42... Bd2
{[%clk 0:00:13.9]} 43. Kf3 {[%clk 0:00:18.1]} 43... Bc1 {[%clk 0:00:14.1]} 44.
Bf1 {[%clk 0:00:18.9]} 44... Rxf1+ {[%clk 0:00:14.7]} 45. Ke2 {[%clk 0:00:19.5]}
45... Rh1 {[%clk 0:00:15.2]} 46. Kd3 {[%clk 0:00:19.7]} 46... Ba3 {[%clk
0:00:16.4]} 0

[Event "Torneo Nuevo Centro. Jornada 10"]
[Site "Chess.com"]
[Date "2020.08.21"]
[Round "4"]
[White "Zamora Soler, Raul"]
[Black "Tormos Beltran, Maite"]
[Result "1-0"]
[WhiteElo "1841"]
[BlackElo "1439"]
[TimeControl "180+2"]
[EndTime "11:13:15 PDT"]
[Termination "Victoria de rzamora80 por abandono"]

1. e4 {[%clk 0:03:01.9]} 1... d5 {[%clk 0:03:00.3]} 2. exd5 {[%clk 0:03:02.6]}
2... Qxd5 {[%clk 0:03:00.5]} 3. Nc3 {[%clk 0:03:04.5]} 3... Qd6 {[%clk
0:03:00.8]} 4. Nf3 {[%clk 0:03:05.1]} 4... Nf6 {[%clk 0:03:01.8]} 5. Be2 {[%clk
0:03:01.6]} 5... c6 {[%clk 0:03:02.2]} 6. d3 {[%clk 0:03:00.8]} 6... e5 {[%clk
0:03:02]} 7. Ne4 {[%clk 0:03:01.6]} 7... Nxe4 {[%clk 0:03:02.2]} 8. dxe4 {[%clk
0:03:02.6]} 8... Qxd1+ {[%clk 0:03:01.4]} 9. Bxd1 {[%clk 0:03:02.8]} 9... Bb4+
{[%clk 0:03:01.7]} 10. c3 {[%clk 0:03:03.3]} 10... Bd6 {[%clk 0:03:02]} 11. O-O
{[%clk 0:03:01.8]} 11... O-O {[%clk 0:03:02.6]} 12. Be3 {[%clk 0:03:02.6]} 12...
Re8 {[%clk 0:03:01]} 13. Bb3 {[%clk 0:03:02.5]} 13... Be6 {[%clk 0:03:00.1]} 14.
Bxe6 {[%clk 0:03:03]} 14... Rxe6 {[%clk 0:03:00.6]} 15. Rad1 {[%clk 0:03:03.7]}
15... Bc7 {[%clk 0:02:57]} 16. Rd2 {[%clk 0:03:00.2]} 16... Re7 {[%clk
0:02:53.8]} 17. Rfd1 {[%clk 0:03:00]} 17... Na6 {[%clk 0:02:54]} 18. Bxa7 {[%clk
0:02:56.9]} 18... b6 {[%clk 0:02:39.3]} 19. Rd7 {[%clk 0:02:50.8]} 19... Kf8
{[%clk 0:02:32.5]} 20. Rxe7 {[%clk 0:02:39.8]} 20... Kxe7 {[%clk 0:02:32.9]} 21.
Bxb6 {[%clk 0:02:38.1]} 21... Bxb6 {[%clk 0:02:33.1]} 22. Nxe5 {[%clk
0:02:39.2]} 22... Rc8 {[%clk 0:02:28.5]} 23. Kf1 {[%clk 0:02:34.4]} 23... Ke6
{[%clk 0:02:27.7]} 24. Nc4 {[%clk 0:02:23.8]} 24... Ba7 {[%clk 0:02:24]} 25. b4
{[%clk 0:02:23.5]} 25... Nxb4 {[%clk 0:02:20.2]} 26. cxb4 {[%clk 0:02:22.8]}
26... f5 {[%clk 0:02:14.1]} 27. Rd6+ {[%clk 0:02:18.4]} 27... Ke7 {[%clk
0:02:08.5]} 28. exf5 {[%clk 0:02:19.5]} 28... Bb8 {[%clk 0:02:06.8]} 29. Re6+
{[%clk 0:02:18.9]} 29... Kf7 {[%clk 0:02:06.4]} 30. h3 {[%clk 0:02:18.4]} 30...
g6 {[%clk 0:02:04.4]} 31. g4 {[%clk 0:02:18.2]} 31... gxf5 {[%clk 0:01:46.1]}
32. gxf5 {[%clk 0:02:18.8]} 32... c5 {[%clk 0:01:13.2]} 33. b5 {[%clk
0:02:16.8]} 33... Bf4 {[%clk 0:01:04]} 34. Ke2 {[%clk 0:02:11.6]} 34... Ra8
{[%clk 0:01:01.3]} 35. Ra6 {[%clk 0:02:11.4]} 35... Rb8 {[%clk 0:01:01]} 36. a4
{[%clk 0:02:11.7]} 36... Re8+ {[%clk 0:00:58.8]} 37. Kf3 {[%clk 0:02:12.7]}
37... Bh2 {[%clk 0:00:58.3]} 38. Kg2 {[%clk 0:02:12.7]} 38... Bf4 {[%clk
0:00:58.4]} 39. Nd6+ {[%clk 0:02:06]} 39... Bxd6 {[%clk 0:00:57.8]} 40. Rxd6
{[%clk 0:02:06.7]} 40... Re5 {[%clk 0:00:56.2]} 41. f6 {[%clk 0:02:00]} 41...
Re4 {[%clk 0:00:53.6]} 42. a5 {[%clk 0:01:59.9]} 42... c4 {[%clk 0:00:54.5]} 43.
Rc6 {[%clk 0:01:57.8]} 43... Re5 {[%clk 0:00:51.5]} 44. Rxc4 {[%clk 0:01:53.7]}
44... Rxb5 {[%clk 0:00:52]} 45. Ra4 {[%clk 0:01:54.5]} 45... Kxf6 {[%clk
0:00:50.2]} 46. a6 {[%clk 0:01:55]} 46... Rb8 {[%clk 0:00:50.5]} 47. Rh4 {[%clk
0:01:53.3]} 47... Kg6 {[%clk 0:00:49.9]} 48. a7 {[%clk 0:01:48.2]} 48... Ra8
{[%clk 0:00:50.4]} 49. Ra4 {[%clk 0:01:48.8]} 49... Kf6 {[%clk 0:00:49.4]} 50.
Kg3 {[%clk 0:01:49.9]} 50... Kg6 {[%clk 0:00:43.9]} 51. Ra6+ {[%clk 0:01:48.1]}
51... Kg7 {[%clk 0:00:43.7]} 52. Kg4 {[%clk 0:01:48.6]} 52... Kf7 {[%clk
0:00:41.2]} 53. f4 {[%clk 0:01:49.4]} 53... Ke7 {[%clk 0:00:41.7]} 54. f5 {[%clk
0:01:48.6]} 54... Kf7 {[%clk 0:00:42.6]} 55. Kg5 {[%clk 0:01:46.8]} 55... Rg8+
{[%clk 0:00:40.7]} 56. Kh6 {[%clk 0:01:47.5]} 56... Ra8 {[%clk 0:00:38.6]} 57.
h4 {[%clk 0:01:48.1]} 57... Kg8 {[%clk 0:00:37.8]} 58. h5 {[%clk 0:01:47.8]}
58... Kf7 {[%clk 0:00:38.5]} 59. Kxh7 {[%clk 0:01:46.4]} 59... Kf8 {[%clk
0:00:38.7]} 60. h6 {[%clk 0:01:42]} 60... Kf7 {[%clk 0:00:39.3]} 61. Rg6 {[%clk
0:01:38.7]} 61... Ke7 {[%clk 0:00:21.2]} 62. Rg8 {[%clk 0:01:33.6]} 62... Rxa7
{[%clk 0:00:18.3]} 63. Rg7+ {[%clk 0:01:34.4]} 63... Kf6 {[%clk 0:00:18.9]} 64.
Rxa7 {[%clk 0:01:35.9]} 64... Kxf5 {[%clk 0:00:20.3]} 65. Kg7 {[%clk 0:01:37]}
1